Cogmind - Beta 10.2 @@@ ROGUE MODE // 2021.07.18 @ 17:49:26 Player: kasaphescent Result: Destroyed by S-10 Pest with Light Assault Rifle Performance ------------- Evolutions (0) 0 Regions Visited (1) 200 Robots Destroyed (4) 20 Value Destroyed (37) 37 Prototype IDs (0) 0 Alien Tech Used (0) 0 Bonus (0) 0 TOTAL SCORE: 257 Bonus ------- None Cogmind --------- Core Integrity 0/250 Matter 280/300 Energy 65/100 System Corruption 0% Temperature Cool (0) Movement Treading (160) Location -10/Materials Parts ------- > --- POWER (1) -------- (None) > --- PROPULSION (2) --- Light Treads Light Treads > --- UTILITY (2) ------ Small Storage Unit > --- WEAPON (2) ------- (None) > --- INVENTORY (6) ---- Wheel Compact Wheel Peak State ------------ > --- POWER ------------ Ion Engine > --- PROPULSION ------- Aluminum Leg Aluminum Leg > --- UTILITY ---------- Small Storage Unit ECM Suite > --- WEAPON ----------- EM Pulse Gun Small Laser > --- INVENTORY -------- Light Ion Engine Light Treads Light Treads Wheel Compact Wheel Medium Laser [Rating: 7] Favorites ----------- Power Ion Engine Engine Ion Engine Propulsion Aluminum Leg Treads Light Treads Leg Aluminum Leg Utility Small Storage Unit Device ECM Suite Storage Small Storage Unit Weapon EM Pulse Gun Energy Gun EM Pulse Gun Build | -11 -10 ------- Run | Scr Mat Slots Evolved . | . . Power . | . . Propulsion . | . . Utility . | . . Weapon . | . . Parts Attached 11 | 6 5 Power 2 | 1 1 Engine 2 | 1 1 Core . | . . Reactor . | . . Propulsion 4 | 2 2 Treads 2 | . 2 Leg 2 | 2 . Wheel . | . . Hover . | . . Flight . | . . Utility 2 | 1 1 Device 1 | . 1 Storage 1 | 1 . Processor . | . . Hackware . | . . Protection . | . . Artifact . | . . Weapon 3 | 2 1 Energy Gun 3 | 2 1 Energy Cannon . | . . Ballistic Gun . | . . Ballistic Cannon . | . . Launcher . | . . Special Weapon . | . . Impact Weapon . | . . Slashing Weapon . | . . Piercing Weapon . | . . Special Melee Weapon . | . . Unidentified Prototypes . | . . Parts Lost 8 | . 8 Power 2 | . 2 Propulsion 2 | . 2 Utility 1 | . 1 Weapon 3 | . 3 Highest Loss Streak 8 | . 8 Average Slot Usage (%) 73 | . 73 Engine 10 | . 10 Treads 1 | . 1 Leg 25 | . 25 Device 5 | . 5 Storage 14 | . 14 Energy Gun 17 | . 17 Naked Turns . | . . Heaviest Build 13 | 12 13 Greatest Support 20 | 20 20 Greatest Overweight (x) 1 | 1 1 Average Overweight (x) . | . . Largest Inventory Capacity 6 | 6 6 Average Capacity 5 | 5 6 Most Carried 6 | 6 6 Average Carried 5 | 5 5 Final Capacity 6 | 6 6 Final Carried 6 | 6 2 Class Distribution -------------------- 100% | Mutant Dominant Class ---------------- Mutant | -10/Materials Resources | -11 -10 ----------- Run | Scr Mat Matter Collected 260 | 260 . Remotely . | . . Salvage Created 144 | 144 . Parts 9 | 9 . Haulers Intercepted . | . . Recyclers Shooed . | . . Parts Field Recycled . | . . Retrieved Matter . | . . Parts Self-Destructed . | . . Prevented . | . . Kills | -11 -10 ------- Run | Scr Mat Combat Hostiles Destroyed . | . . Classes Destroyed 2 | 2 . Tunneler 3 | 3 . Recycler 1 | 1 . Best Kill Streak 1 | 1 . Combat Bots Only . | . . Max Kills in Single Turn 1 | 1 . Gunslinging . | . . Exploded . | . . Melee . | . . Uniques/NPCs Destroyed . | . . Combat | -11 -10 -------- Run | Scr Mat Damage Taken 805 | . 805 Core 251 | . 251 Absorbed by Shields . | . . Core Remaining (%) 100 | 100 . Volleys Fired 22 | 13 9 Largest 2 | 2 2 Hottest 80 | 80 80 Shots Fired 39 | 26 13 Gun 39 | 26 13 Cannon . | . . Launcher . | . . Special . | . . Kinetic . | . . Thermal 20 | 13 7 Explosive . | . . Electromagnetic 19 | 13 6 Robot Hit Streak 7 | 7 4 Robot Miss Streak 4 | 4 1 Penetration Max . | . . Secondary Targets . | . . Shots Hit Robots 26 | 16 10 Core Hits 8 | 5 3 Critical Hits . | . . Critical Kills . | . . Critical Parts Destroyed . | . . Melee Attacks . | . . Impact . | . . Slashing . | . . Piercing . | . . Sneak Attacks . | . . Combat Hostiles . | . . Follow-up Attacks . | . . Damage Inflicted 299 | 183 116 Guns 293 | 183 110 Cannons . | . . Explosions . | . . Melee . | . . Ramming 6 | . 6 Kinetic . | . . Thermal 135 | 64 71 Explosive . | . . Electromagnetic 158 | 119 39 Impact . | . . Slashing . | . . Piercing . | . . Highest Corruption . | . . Average Corruption . | . . Corruption Purged . | . . Overload Shots . | . . Overflow Damage . | . . Projectiles . | . . Explosions . | . . Melee . | . . Knockbacks . | . . Impact . | . . Kinetic . | . . Secondary . | . . Self-Inflicted Damage 1 | . 1 Shots . | . . Rammed 4 | . 4 Targets Rammed 7 | . 7 Kicked 3 | . 3 Crushed . | . . Highest Temperature 213 | 72 213 Average Temperature 64 | 27 115 Received Heat Transfer 222 | . 222 Siege Activations . | . . Robots Corrupted . | . . Combat Hostiles . | . . Parts Fried 1 | 1 . Impact Corruptions . | . . Robots Melted . | . . Combat Hostiles . | . . Parts Melted . | . . Heat Transferred 336 | 150 186 Parts Sabotaged . | . . Parts Stolen . | . . Parts Stripped . | . . Power Chain Reactions . | . . Missiles Intercepted . | . . Alert | -11 -10 ------- Run | Scr Mat Peak Influence 58 | 20 58 Initial 13 | . 13 Average 15 | 7 26 Maximum Alert Level . | . . Low Security (%) 100 | 100 100 Level 1 . | . . Level 2 . | . . Level 3 . | . . Level 4 . | . . Level 5 . | . . High Security . | . . Max Security . | . . Squads Dispatched 2 | . 2 Investigation 1 | . 1 Extermination . | . . Reinforcement 1 | . 1 Assault . | . . Garrison . | . . Intercept . | . . Construction Impeded . | . . Haulers Reinforced . | . . Stealth | -11 -10 --------- Run | Scr Mat Distress Signals 1 | . 1 Communications Jammed . | . . Distress Signals . | . . Times Spotted 14 | . 14 Peak Tracking Total 9 | . 9 Tactical Retreats 2 | . 2 Traps | -11 -10 ------- Run | Scr Mat Traps Triggered 1 | . 1 Indirectly . | . . Trap Hack Attempts . | . . Triggered . | . . Disarmed . | . . Reprogrammed . | . . Reused . | . . Traps Extracted . | . . Installed . | . . Triggered . | . . Machines | -11 -10 ---------- Run | Scr Mat Machines Disabled 1 | . 1 Max in Single Turn 1 | . 1 Machines Sabotaged . | . . Garrisons Compromised . | . . Overloaded Fab Kills . | . . Fab Network Shutdowns . | . . Hacking | -11 -10 --------- Run | Scr Mat Machines Accessed . | . . Terminals . | . . Fabricators . | . . Repair Stations . | . . Recycling Units . | . . Scanalyzers . | . . Garrison Access . | . . Total Hacks . | . . Successful . | . . Failed . | . . Catastrophic . | . . Database Lockouts . | . . Manual . | . . Terminals . | . . Fabricators . | . . Repair Stations . | . . Recycling Units . | . . Scanalyzers . | . . Garrison Access . | . . Terminal Hacks . | . . Fabricator Hacks . | . . Repair Station Hacks . | . . Recycling Unit Hacks . | . . Scanalyzer . | . . Garrison Access Hacks . | . . Unauthorized Hacks . | . . Terminals . | . . Fabricators . | . . Repair Stations . | . . Recycling Units . | . . Scanalyzers . | . . Garrison Access . | . . Data Cores Recovered . | . . Used . | . . Hacking Detections . | . . Full Trace Events . | . . Feedback Events . | . . Feedback Blocked . | . . Robot Schematics Acquired . | . . Robots Built . | . . Matter . | . . Time . | . . Total Robot Build Rating . | . . Part Schematics Acquired . | . . Parts Built . | . . Matter . | . . Time . | . . Total Part Build Rating . | . . Parts Repaired . | . . Time . | . . Parts Recycled . | . . Recycled Matter . | . . Retrieved Matter . | . . Retrieved Components . | . . Parts Scanalyzed . | . . Part Schematics Acquired . | . . Parts Damaged . | . . Bothacking | -11 -10 ------------ Run | Scr Mat Used RIF Installer . | . . Robots Hacked . | . . Non-combat . | . . Combat . | . . Robot Hacks Applied . | . . Relay Couplers Released . | . . Robots Rewired . | . . Allies Hacked . | . . Hacks Repelled . | . . Allies | -11 -10 -------- Run | Scr Mat Total Allies . | . . Largest Group . | . . Highest-Rated Group . | . . Highest-Rated Ally . | . . Total Orders . | . . Ally Attacks . | . . Total Damage . | . . Kills . | . . Allies Corrupted . | . . Allies Melted . | . . Intel | -11 -10 ------- Run | Scr Mat Robot Analysis Total . | . . Derelict Logs Recovered . | . . Drone Launches . | . . Drone Recoveries . | . . Exploration | -11 -10 ------------- Run | Scr Mat Turns Passed 319 | 182 137 Spaces Moved 190 | 105 85 Core 15 | 13 2 Treads . | . . Legs 175 | 92 83 Wheels . | . . Hover . | . . Flight . | . . Fastest Speed 50 | 50 100 Average Speed 116 | 114 119 Slowest Speed 150 | 150 120 Overloaded Moves . | . . Propulsion Burnouts . | . . Robots Hopped . | . . Cave-ins Triggered . | . . Exploration Rate (%) 12 | 6 19 Regions Visited 1 Branch Regions . Pre-discovered Areas . | . . Known Exits Taken . | . . Unknown Exits Taken 1 | 1 . Scrap Searched . | . . Spaces Dug . | . . Terrain Destroyed . | . . Melee . | . . Projectile . | . . AOE . | . . Terrain Rammed . | . . Walls Destroyed . | . . Machines Disabled . | . . Actions | -11 -10 --------- Run | Scr Mat Total 244 | 138 106 Wait 9 | 9 . Move 189 | 104 85 Hop . | . . Pick Up 6 | 6 . Fast Attach 7 | 6 1 Attach 4 | . 4 Detach . | . . Swap . | . . Drop . | . . Fire 22 | 13 9 Melee . | . . Ram . | . . Kick 7 | . 7 Crush . | . . Escape Stasis . | . . Rewire . | . . Trap . | . . Miscellaneous . | . . Route ------- -11/Scrapyard -10/Materials History --------- Turn | Location | Event 2 | -11/Scrapyard | Met Revision 17 14 | -11/Scrapyard | Discovered new exit (range 16) 183 | -11/Scrapyard | Entered Materials 285 | -10/Materials | Core integrity fell below 50% 312 | -10/Materials | Build established: Mutant 314 | -10/Materials | Core integrity fell below 20% 320 | -10/Materials | Destroyed by S-10 Pest with Light Assault Rifle Last Messages --------------- 00210_ ALERT: Alarm triggered, dispatching investigation squad. 00218_ U-05 Engineer lays Concrete. 00222_ Acquired ECM Suite. 00255_ Hadron Collector disabled. 00264_ Sml. Laser destroyed. 00268_ Ion Engine destroyed. 00271_ EM Pulse Gun destroyed. 00274_ G-34 Mercenary misfires. 00275_ ECM Suite destroyed. 00278_ Med. Laser destroyed. 00279_ Slammed into S-10 Pest. 00280_ Kicked S-10 Pest out of the way. 00281_ Lgt. Ion Engine destroyed. 00301_ W-16 Scout sends out distress signal. 00306_ Kicked G-34 Mercenary out of the way. 00307_ Aluminum Leg destroyed. 00307_ Slammed into S-10 Pest. 00311_ Kicked S-10 Pest out of the way. 00312_ Slammed into G-34 Mercenary. 00317_ Aluminum Leg destroyed. Map ----- +----------------------------------------------------+ | ?????????????????????????????????????????????????? | | ?????????????????????????????????????????????????? | | ?????????????????????????????????????????????????? | | ?????????????????????????????????????????????????? | | ?????????????????????????????????????????????????? | | ?????????????????????????????????????????????????? | | ?????????????????????????????????????????????????? | | ?????????????????????????????????????????????????? | | ??????????????????????????????????? ???????????? | | ??????????????????????????????????? #??????????? | | ??????????????????????????????????? #??????????? | | ??????????????????????????????????? #??????????? | | ??????????????????????????????????? +??????????? | | ??????????????????????? ?????????? #??????????? | | ???????????????????????#+?????????# ##?????????? | | ???????????????????????# ###?????? #?????????? | | ???????????????????????# ?????? #?????????? | | ??????????????????????? t ?????? #?????????? | | ???????????????????????# ?????? #?????????? | | ???????????????????????# #?????? #?????????? | | ???????????????????????# ######## #??????????? | | ???????????????????????# ## # #??????????? | | ???????????????????????# ## """ / #??????????? | | ??????????????????????## ## """ # #??????????? | | ??????????????????????# # "" # #??????????? | | ??????????????????????# @ # "" # ###??????????? | | ??????????????????????# # # #????????????? | | ??????????????????????# g %+ ! # #????????????? | | ??????????????????????# ssg ####### #????????????? | | ?????????????????????####/######??# #????????????? | | ?????????????????????# %g% % #??# #????????????? | | ?????????????????????# """""""%#??# #???????????## | | ?????????????????????# """"""" #### ##?????????? | | ?????????????????????# """"""" # ########### # | | ?????????????????????# """"""" # | | ?????????????????????# """"""" # | | ?????????????????????# # | | ?????????????????????# ! # ########## | | ?????????????????????########################?# | | ?????????????????????????????????????# T # | | ?????????????????????????????????????# # | | ?????????????????????????????????????# + | | ?????????????????????????????????????# # | | ?????????????????????????????????????# # | | ?????????????????????????????????????# """"" ?# | | ?????????????????????????????????????# """"" ?# | | ???????????????????????????????????????"""""??# | | ??????????????????????????????????????? ??# | | ????????????????????????????????????????###???# | | ??????????????????????????????????????????????# | +----------------------------------------------------+ Best States ------------- Heat Dissipation 25 Energy Generation 10 Energy Capacity 250 Matter Stores 300 Matter Capacity 300 Sight Range 16 Terrain Scan Density 10 ECM Strength 1 Evasion (%) 50 Recoil Reduction 1 Item Schematics ----------------- None Robot Schematics ------------------ None Fabricated ------------ Nothing Alien Tech Used ----------------- None Achievements -------------- None Challenges ------------ None Game ------ Seed WarpDisruptionSystem Manual? 0 Play Time 00:05:39 Cumulative 96.8 hours Start 2021.07.18 @ 17:43:51 End 2021.07.18 @ 17:49:26 Sessions 1 Manual Loads 0 Difficulty Rogue Special Mode None Game No. 62 Rogue 62 Adventurer 0 Explorer 0 Win Type - Total 1 Types 1/0/0/0/0/0/0/0/0 Lore% 46 Gallery% 60 Achievement% 41 Wizard Run 0 Options --------- ASCII 1 Keyboard 1 Movement Numpad Keybinds 0 Fullscreen 1 Font 18/SmallcapsGlow Map View 76x50 Tactical HUD 1 Map Filters NONE Filters NONE Steam 1 RUN: fa827423-61c4-44c9-991d-beac2659e228